bitfinex/quotes_SOLUSD_20240808
["timestamp","ask_amount","ask_price","bid_price","bid_amount"]
[1723083881714,45.17,155.2,155.08,47.75]
[1723083881901,45.17,155.2,155.09,20.0]
[1723083882505,0.17,155.2,155.09,20.0]
[1723083882839,15.22336912,155.21,155.09,21.28725828]
[1723083882999,15.22336912,155.21,155.09,20.0]
[1723083883214,15.22336912,155.21,155.08,47.75]
[1723083883405,15.22336912,155.21,155.09,20.0]
[1723083884813,15.22336912,155.21,155.08,47.75]
[1723083885005,26.7074,155.2,155.08,47.75]
[1723083885791,26.7074,155.2,155.01,25.6569]
[1723083885792,45.34,155.19,155.04,47.75]
[1723083885993,6.4113,155.18,155.04,47.75]
[1723083886228,45.34,155.17,155.04,47.75]
[1723083889213,45.34,155.17,155.05,20.0]
[1723083891212,6.4113,155.18,155.05,20.0]
[1723083894321,45.17,155.17,155.05,20.0]
[1723083894494,45.34,155.17,155.05,20.0]
[1723083895326,6.5072,155.15,154.98,47.75]
[1723083895511,0.17,155.14,154.98,47.75]
[1723083895702,45.34,155.14,154.98,47.75]
[1723083895906,45.34,155.14,154.98,54.48982499]
[1723083896714,45.34,155.14,154.98,47.75]
[1723083897108,45.34,155.14,155.02,47.75]
[1723083897297,6.5072,155.15,155.03,20.44076218]
[1723083897500,24.41567148,155.15,155.06,47.75]
[1723083898595,24.41567148,155.15,155.03,20.0]
[1723083898920,0.17,155.14,155.03,20.0]
[1723083899094,17.90847148,155.15,155.06,67.13]
[1723083899415,6.1623,155.19,155.07,20.0]
[1723083900419,6.1623,155.19,155.08,0.44926095]
[1723083900592,6.1623,155.19,155.07,20.0]
[1723083901196,6.1623,155.19,155.08,0.44838121]
[1723083901395,6.1623,155.19,155.0,23.1553]
[1723083901634,6.1623,155.19,155.02,47.75]
[1723083902002,6.1623,155.19,155.03,1.28960015]
[1723083902220,6.1623,155.19,155.06,47.75]
[1723083902525,45.34,155.18,155.06,47.75]
[1723083902700,45.34,155.18,155.07,1.28872634]
[1723083902903,45.34,155.18,155.06,47.75]
[1723083903516,45.34,155.18,155.07,20.0]
[1723083904320,45.17,155.18,155.07,20.0]
[1723083904618,6.1623,155.19,155.07,20.0]
[1723083904829,6.1623,155.19,155.07,21.28917873]
[1723083905003,6.1623,155.19,155.07,20.0]
[1723083905920,6.1623,155.19,155.08,0.90891585]
[1723083906122,6.1623,155.19,155.07,20.0]
[1723083906840,45.34,155.18,155.07,21.28923504]
[1723083907127,45.17,155.18,155.07,21.28923504]
[1723083907429,45.17,155.18,155.07,20.0]
[1723083907641,6.1623,155.19,155.08,1.28861753]
[1723083907813,6.1623,155.19,155.1,47.75]
[1723083908008,6.1623,155.19,155.11,20.0]
[1723083908205,6.1623,155.19,155.08,1.28861753]
[1723083908440,6.1623,155.19,155.05,47.75]
[1723083908810,6.1623,155.19,155.05,68.41872789]
[1723083909007,45.17,155.18,155.05,68.41872789]
[1723083909516,6.1623,155.19,155.05,49.03872789]
[1723083909731,45.34,155.18,155.05,47.75]
[1723083909914,45.34,155.18,155.05,49.03921099]
[1723083910433,45.34,155.18,155.06,20.0]
[1723083910635,45.34,155.18,155.07,1.28904471]
[1723083910933,45.34,155.18,155.03,50.15378502]
[1723083911133,45.34,155.18,155.03,47.75]
[1723083912435,45.34,155.18,155.03,50.17276858]
[1723083912935,45.34,155.18,155.07,47.75]
[1723083913315,45.34,155.18,155.03,2.42276858]
[1723083913514,45.34,155.18,155.06,47.75]
[1723083913731,45.34,155.18,155.07,20.0]
[1723083914010,0.17,155.18,155.07,20.0]
[1723083915115,6.1623,155.19,155.08,0.34284229]
[1723083915316,6.1623,155.19,155.1,47.75]
[1723083915514,6.1623,155.19,155.07,20.0]
[1723083915938,6.1623,155.19,155.06,47.75]
[1723083916236,6.1623,155.19,155.02,64.198]
[1723083916426,0.17,155.18,155.02,64.198]
[1723083916629,45.34,155.18,155.02,64.198]
[1723083917144,45.34,155.18,155.03,1.28968542]
[1723083917335,45.34,155.18,155.06,47.75]
[1723083917514,6.1623,155.19,155.07,21.28922141]
[1723083917709,6.1623,155.19,155.08,1.28909753]
[1723083918244,6.1623,155.19,155.07,20.0]
[1723083918425,15.22336912,155.21,155.07,20.0]
[1723083918614,15.22336912,155.21,155.08,1.28920005]
[1723083919519,15.22336912,155.21,155.07,20.0]
[1723083920139,15.22336912,155.21,155.08,1.28914899]
[1723083920535,15.22336912,155.21,155.08,1.28907811]
[1723083920713,45.0,155.2,155.08,1.28907811]
[1723083921641,15.22336912,155.21,155.1,47.75]
[1723083921938,15.22336912,155.21,155.11,20.0]
[1723083923044,45.34,155.2,155.06,56.37196637]
[1723083923248,45.34,155.2,155.06,53.9432]
[1723083923552,22.4001,155.19,155.06,47.75]
[1723083923748,45.34,155.18,155.02,64.198]
[1723083924040,6.4102,155.17,155.02,64.198]
[1723083924242,45.34,155.16,155.02,64.198]
[1723083927023,45.34,155.16,155.03,20.0]
[1723083928031,6.447,155.11,154.94,15.7172]
[1723083928365,6.447,155.11,154.9,6.1067]
[1723083928366,6.2064,155.08,154.9,53.8567]
[1723083928525,0.17,155.07,154.9,53.8567]
[1723083928724,45.34,155.07,154.9,56.60852248]
[1723083929135,45.34,155.07,154.94,47.75]
[1723083929928,13.20144097,155.06,154.9,2.40497391]
[1723083930149,13.20144097,155.06,154.89,63.4672]
[1723083930150,45.34,155.05,154.89,63.4672]
[1723083930839,45.34,155.05,154.93,47.75]
[1723083931148,45.34,155.05,154.94,1.2900377]
[1723083931346,6.4783,155.06,154.94,1.2900377]
[1723083931539,6.4783,155.06,154.95,1.28962142]
[1723083931744,6.4783,155.06,154.94,20.0]
[1723083932551,45.0,155.05,154.94,20.0]
[1723083932847,45.0,155.05,154.95,1.18942651]
[1723083933050,35.36976223,155.04,154.89,24.78537173]
[1723083933353,45.17,155.03,154.89,65.8110305]
[1723083933564,6.4242,155.02,154.89,65.8110305]
[1723083933729,45.17,155.01,154.89,65.8110305]
[1723083933934,45.17,155.01,154.89,67.10166445]
[1723083934155,45.0,155.01,154.89,67.10166445]
[1723083934353,45.0,155.01,154.89,65.8110305]
[1723083934931,45.0,155.01,154.9,20.0]
[1723083935125,0.17,155.0,154.9,20.0]
[1723083935339,0.34,155.0,154.9,20.0]
[1723083937735,0.34,155.0,154.89,63.4672]
[1723083937736,0.34,155.0,154.89,47.75]
[1723083938139,17.850001,155.0,154.84,16.2048]
[1723083938355,6.2609,154.98,154.87,47.75]
[1723083938662,15.8525,154.96,154.87,47.75]
[1723083938831,45.17,154.95,154.87,47.75]
[1723083939037,6.2609,154.94,154.83,47.75]
[1723083939240,45.17,154.93,154.83,47.75]
[1723083939956,0.17,154.92,154.83,47.75]
[1723083940157,0.17,154.92,154.76,26.32583299]
[1723083940467,0.17,154.92,154.8,47.75]
[1723083940760,22.1134,154.91,154.8,47.75]
[1723083940957,45.34,154.9,154.8,47.75]
[1723083941164,45.34,154.9,154.76,47.75]
[1723083941851,6.2609,154.89,154.76,47.75]
[1723083942161,45.34,154.88,154.76,47.75]
[1723083942758,22.7019,154.87,154.76,47.75]
[1723083942990,45.0,154.86,154.8,47.75]
[1723083943164,6.0612,154.87,154.84,47.75]
[1723083944035,6.0612,154.87,154.8,47.75]
[1723083944233,6.0612,154.87,154.81,20.0]
[1723083944850,6.0612,154.87,154.81,20.85637086]
[1723083945370,6.0612,154.87,154.81,20.0]
[1723083946364,6.5264,154.91,154.84,47.75]
[1723083946565,21.7411,154.96,154.89,47.75]
[1723083946798,6.5264,154.96,154.9,20.0]
[1723083947102,6.5264,154.96,154.89,47.75]
[1723083947467,6.5264,154.96,154.85,47.75]
[1723083947768,6.5264,154.96,154.86,20.0]
[1723083948285,6.5264,154.96,154.82,47.75]
[1723083948286,6.5264,154.96,154.83,20.0]
[1723083948663,6.5264,154.96,154.86,47.75]
[1723083948888,6.5264,154.96,154.87,20.0]
[1723083949304,6.5264,154.96,154.9,47.75]
[1723083949666,6.5387,155.01,154.94,47.75]
[1723083949885,6.5387,155.01,154.95,20.0]
[1723083950085,6.5387,155.01,154.96,1.29036125]
[1723083950290,6.5387,155.06,154.98,47.75]
[1723083951388,6.5387,155.06,154.99,20.0]
[1723083951868,6.5387,155.06,154.98,47.75]
[1723083952877,6.5387,155.06,154.94,47.75]
[1723083953080,6.5387,155.06,154.95,20.0]
[1723083953282,45.34,155.05,154.95,20.0]
[1723083953796,45.34,155.05,154.92,47.75]
[1723083953979,45.34,155.05,154.93,20.0]
[1723083954172,15.2808,155.03,154.81,16.3767]
[1723083954374,0.17,155.02,154.86,47.75]
[1723083954586,58.72493139,155.02,154.86,47.75]
[1723083955492,39.83156406,155.01,154.86,47.75]
[1723083955695,39.83156406,155.01,154.81,16.3767]
[1723083955696,6.4522,154.99,154.81,16.3767]
[1723083955904,13.79472033,154.98,154.8,47.75]
[1723083956197,58.61174284,154.97,154.8,67.13]
[1723083956492,0.34,154.96,154.85,47.75]
[1723083957206,0.34,154.96,154.86,20.0]
[1723083957408,13.47848571,154.96,154.86,20.0]
[1723083957691,45.0,154.95,154.86,20.0]
[1723083957919,0.34,154.94,154.86,20.0]
[1723083959008,45.0,154.95,154.89,47.75]
[1723083959178,13.13848571,154.96,154.9,20.0]
[1723083959375,6.4432,155.0,154.9,20.0]
[1723083961175,45.34,154.99,154.9,20.0]
[1723083961571,45.34,154.99,154.89,47.75]
[1723083962182,58.15151858,154.99,154.85,47.75]
[1723083962385,12.84395796,154.98,154.82,16.0939]
[1723083962575,45.34,154.97,154.82,16.0939]
[1723083962773,45.34,154.97,154.84,47.75]
[1723083963083,21.7164,154.96,154.81,47.75]
[1723083963289,51.2499,154.95,154.78,6.74410397]
[1723083963503,6.0799,154.93,154.77,47.75]
[1723083963696,58.20152536,154.92,154.77,47.75]
[1723083963884,22.8498,154.9,154.77,47.75]
[1723083964093,57.66657236,154.89,154.77,47.75]
[1723083964695,26.13629048,154.88,154.73,48.5868321]
[1723083964900,14.18809783,154.87,154.73,48.5868321]
[1723083965092,58.86059265,154.86,154.73,48.5868321]
[1723083965437,6.4585,154.84,154.73,0.8368321]
[1723083965605,20.29572165,154.85,154.73,0.8368321]
[1723083965606,16.1863,154.82,154.73,0.8368321]
[1723083965903,45.34,154.81,154.73,0.8368321]
[1723083966094,18.40287362,154.8,154.73,0.8368321]
[1723083966405,57.09788742,154.79,154.73,0.8368321]
[1723083966614,11.59664472,154.78,154.73,0.8368321]
[1723083966791,45.34,154.77,154.73,0.8368321]
[1723083966998,11.31663925,154.76,154.73,0.8368321]
[1723083967324,45.34,154.75,154.65,47.75]
[1723083968522,21.4937,154.74,154.6,1.29308082]
[1723083968693,21.4937,154.74,154.53,26.46205412]
[1723083969015,45.34,154.73,154.57,48.5868321]
[1723083969597,6.4645,154.69,154.57,0.8368321]
[1723083969813,20.0,154.65,154.57,0.8368321]
[1723083970123,6.6367,154.64,154.57,0.8368321]
[1723083970327,45.17,154.63,154.57,0.8368321]
[1723083970617,45.0,154.63,154.57,0.8368321]
[1723083970827,6.4331,154.67,154.57,0.8368321]
[1723083972321,0.17,154.66,154.57,0.8368321]
[1723083972703,45.17,154.66,154.57,0.8368321]
[1723083972908,0.17,154.65,154.57,0.8368321]
[1723083976406,6.6363,154.65,154.57,0.8368321]
[1723083976610,45.17,154.64,154.57,0.8368321]
[1723083976916,45.34,154.63,154.57,0.8368321]
[1723083977112,0.17,154.63,154.57,0.8368321]
[1723083977825,6.4331,154.67,154.57,0.8368321]
[1723083978125,12.8985,154.67,154.57,0.8368321]
[1723083978330,16.5467,154.66,154.57,0.8368321]
[1723083978897,45.34,154.65,154.57,0.8368321]
[1723083979100,45.0,154.65,154.57,0.8368321]
[1723083979317,6.4331,154.67,154.57,0.8368321]
[1723083984236,45.34,154.66,154.57,0.8368321]
[1723083984434,6.4331,154.67,154.58,1.29352687]
[1723083984843,6.4331,154.67,154.57,0.8368321]
[1723083985918,45.0,154.66,154.57,0.8368321]
[1723083986315,0.34,154.65,154.57,0.8368321]
[1723083988142,22.9923,154.71,154.57,0.8368321]
[1723083988725,6.4456,154.71,154.57,6.9857321]
[1723083988944,6.4456,154.71,154.58,98.34]
[1723083989121,6.4456,154.71,154.58,78.96]
[1723083989324,22.7863,154.75,154.59,60.2026]
[1723083989639,22.7863,154.75,154.6,20.17]
[1723083989842,6.5827,154.75,154.61,45.17]
[1723083990149,6.5827,154.75,154.62,20.17]
[1723083990320,6.5827,154.75,154.62,20.0]
[1723083990520,11.34798654,154.78,154.63,0.17]
[1723083990730,22.9303,154.8,154.63,0.34]
[1723083991043,6.6164,154.8,154.64,20.60079216]
[1723083991341,6.6164,154.8,154.66,78.17]
[1723083991544,6.6164,154.8,154.67,26.3073]
[1723083991749,6.6164,154.8,154.7,48.03]
[1723083991958,6.4771,154.84,154.71,20.0]
[1723083993812,26.4771,154.84,154.69,15.1566]
[1723083994049,6.4591,154.82,154.69,15.1566]
[1723083994225,12.9355,154.84,154.69,15.1566]
[1723083994423,6.4771,154.84,154.69,15.1566]
[1723083994742,6.4771,154.84,154.7,48.03]
[1723083995333,20.0,154.83,154.69,15.1566]
[1723083995526,6.4771,154.84,154.66,48.03]
[1723083995734,6.4771,154.84,154.67,20.0]
[1723083996221,12.9355,154.84,154.67,20.0]
[1723083996435,20.0,154.8,154.66,48.03]
[1723083996636,45.17,154.79,154.66,48.03]
[1723083996837,0.17,154.78,154.66,48.03]
[1723083997719,6.4771,154.84,154.66,48.03]
[1723083997918,6.4771,154.84,154.67,1.29196363]
[1723083998145,6.4771,154.84,154.7,48.03]
[1723083998443,6.4771,154.84,154.71,20.0]
[1723083998740,6.4595,154.82,154.64,16.3437]
[1723083998941,6.4587,154.83,154.66,48.03]
[1723083999247,6.4591,154.82,154.67,20.0]
[1723083999449,6.4595,154.81,154.67,20.0]
[1723083999660,6.46,154.8,154.66,48.03]
[1723083999849,65.34,154.79,154.64,16.3437]
[1723084000148,0.17,154.78,154.64,16.3437]
[1723084000647,6.4613,154.77,154.64,16.3437]
[1723084000831,56.68798654,154.76,154.64,16.3437]
[1723084001147,0.17,154.75,154.64,16.3437]
[1723084003560,11.34798654,154.76,154.64,16.3437]
[1723084003848,11.34798654,154.76,154.65,20.0]
[1723084004934,0.17,154.75,154.65,20.0]
[1723084005542,45.34,154.75,154.65,20.0]
[1723084005740,6.5752,154.74,154.59,15.6168]
[1723084005931,45.34,154.73,154.59,15.6168]
[1723084006140,51.8029,154.73,154.59,15.6168]
[1723084006356,6.4641,154.71,154.59,15.6168]
[1723084006649,45.34,154.7,154.59,15.6168]
[1723084006957,0.34,154.7,154.59,15.6168]
[1723084007851,0.34,154.7,154.6,20.0]
[1723084009134,0.34,154.7,154.59,15.6168]
[1723084009949,0.17,154.7,154.59,15.6168]
[1723084010338,0.17,154.7,154.59,63.6468]
[1723084010848,0.17,154.7,154.6,20.0]
[1723084011026,6.5752,154.74,154.6,20.0]
[1723084011538,6.4632,154.73,154.56,6.5044]
[1723084011736,20.0,154.71,154.56,6.5044]
[1723084012042,6.4647,154.69,154.56,6.5044]
[1723084012242,51.4649,154.68,154.56,6.5044]
[1723084012438,0.34,154.67,154.56,6.5044]
[1723084014441,0.34,154.67,154.54,16.2316]
[1723084016033,0.34,154.67,154.55,20.0]
[1723084018035,0.34,154.67,154.54,16.2316]
[1723084018233,0.34,154.67,154.55,20.0]
[1723084020156,6.4917,154.66,154.54,16.2316]
[1723084020363,45.34,154.65,154.54,16.2316]
[1723084021358,45.34,154.65,154.49,48.03]
[1723084021359,65.34,154.65,154.49,48.03]
[1723084021533,6.4671,154.63,154.49,48.03]
[1723084021761,35.7198,154.61,154.48,15.9041]
[1723084021949,51.3728,154.6,154.48,15.9041]
[1723084022143,57.8412,154.6,154.48,15.9041]
[1723084023162,57.8411,154.6,154.48,15.9041]
[1723084023553,20.0,154.59,154.43,69.4184]
[1723084023743,20.0,154.59,154.43,21.3884]
[1723084023744,45.0,154.58,154.43,21.3884]
[1723084023956,0.34,154.57,154.43,21.3884]
[1723084024170,6.6428,154.56,154.42,0.8368321]
[1723084024380,6.4708,154.54,154.42,0.8368321]
[1723084024551,45.34,154.53,154.42,0.8368321]
[1723084024750,45.0,154.52,154.42,0.8368321]
[1723084024952,0.17,154.51,154.42,0.8368321]
[1723084025158,32.5711,154.5,154.42,0.8368321]
[1723084025477,51.813,154.49,154.42,0.8368321]
[1723084025760,45.34,154.49,154.42,0.8368321]
[1723084027273,6.475,154.44,154.42,0.8368321]
[1723084027453,45.34,154.43,154.42,0.8368321]
[1723084027775,6.0986,154.5,154.42,0.8368321]
[1723084027949,6.4422,154.55,154.42,17.0130321]
[1723084028144,6.4708,154.54,154.42,17.0130321]
[1723084028344,6.4712,154.53,154.42,17.0130321]
[1723084028652,6.4422,154.55,154.42,17.0130321]
[1723084028878,12.9128,154.55,154.42,17.0130321]
[1723084029180,6.4715,154.53,154.42,0.8368321]
[1723084029387,12.9129,154.55,154.42,0.8368321]
[1723084029566,6.4422,154.55,154.42,0.8368321]
[1723084029868,26.4422,154.55,154.42,0.8368321]
[1723084030050,12.9127,154.55,154.42,0.8368321]
[1723084030249,6.4422,154.55,154.42,0.8368321]
[1723084030572,6.73875476,154.54,154.42,0.8368321]
[1723084030780,6.4422,154.55,154.42,0.8368321]
[1723084030992,17.41530196,154.55,154.43,48.03]
[1723084032476,17.41530196,154.55,154.42,0.8368321]
[1723084033048,6.4721,154.51,154.42,0.8368321]
[1723084033257,12.9151,154.51,154.42,0.8368321]
[1723084033463,6.6425,154.5,154.42,0.8368321]
[1723084033674,45.17,154.49,154.42,0.8368321]
[1723084033859,0.17,154.48,154.42,0.8368321]
[1723084034764,22.7214,154.54,154.42,0.8368321]
[1723084034963,6.6312,154.54,154.42,0.8368321]
[1723084036551,45.0,154.53,154.42,0.8368321]
[1723084036960,0.17,154.52,154.42,0.8368321]
[1723084037265,20.34,154.52,154.42,0.8368321]
[1723084037458,6.4744,154.46,154.42,0.8368321]
[1723084037657,60.0632,154.51,154.42,0.8368321]
[1723084037870,6.8125,154.5,154.42,0.8368321]
[1723084038070,6.4735,154.48,154.42,0.8368321]
[1723084038284,51.6437,154.47,154.42,0.8368321]
[1723084038591,0.17,154.46,154.42,0.8368321]
[1723084039286,10.7746,154.44,154.27,22.4389706]
[1723084039488,0.17,154.43,154.27,15.7067]
[1723084039693,45.34,154.43,154.28,19.38]
[1723084039864,45.34,154.43,154.3,21.9143]
[1723084041091,45.34,154.43,154.3,41.2943]
[1723084041262,45.34,154.43,154.31,21.29119652]
[1723084041471,45.34,154.43,154.31,20.0]
[1723084042159,45.34,154.43,154.31,39.38]
[1723084042486,6.4191,154.53,154.35,15.3203]
[1723084042688,6.4191,154.53,154.36,20.0]
[1723084042865,6.4729,154.49,154.36,20.0]
[1723084043186,6.4734,154.48,154.35,15.3203]
[1723084043490,6.4724,154.51,154.35,15.3203]
[1723084043670,6.4729,154.49,154.36,1.29526966]
[1723084043871,0.17,154.48,154.35,15.3203]
[1723084044186,0.34,154.48,154.35,15.3203]
[1723084044766,45.34,154.48,154.35,15.3203]
[1723084045172,45.34,154.48,154.36,20.0]
[1723084045372,33.16726084,154.53,154.36,20.0]
[1723084045373,13.16726084,154.53,154.36,20.0]
[1723084045568,13.16726084,154.53,154.36,21.293887]
[1723084045782,6.4716,154.52,154.36,21.293887]
[1723084046291,6.4191,154.53,154.36,20.0]
[1723084046500,6.4191,154.53,154.37,1.29296501]
[1723084046664,6.4725,154.5,154.36,20.0]
[1723084046994,0.17,154.49,154.36,20.0]
[1723084047494,0.17,154.47,154.36,20.0]
[1723084049071,45.17,154.48,154.35,15.3203]
[1723084049266,0.17,154.47,154.35,15.3203]
[1723084050170,0.17,154.47,154.36,20.0]
[1723084051079,45.17,154.47,154.36,20.0]
[1723084051281,0.17,154.46,154.35,15.3203]
[1723084052824,0.17,154.46,154.35,16.42119215]
[1723084052971,0.17,154.46,154.35,15.3203]
[1723084053575,0.17,154.46,154.35,16.42087898]
[1723084053771,6.4191,154.53,154.36,21.1012364]
[1723084054172,6.3863,154.57,154.37,58.6959]
[1723084054409,6.3863,154.57,154.39,15.5195]
[1723084054705,6.3863,154.57,154.4,20.0]
[1723084054706,6.4715,154.53,154.4,20.0]
[1723084055191,6.4707,154.55,154.4,20.0]
[1723084055373,13.12470087,154.57,154.4,20.0]
[1723084055576,6.4707,154.55,154.4,20.0]
[1723084055775,13.12470087,154.57,154.41,6.2678]
[1723084055995,6.3863,154.57,154.43,15.0404]
[1723084056197,21.1582,154.62,154.44,20.0]
[1723084056398,6.74182762,154.61,154.44,20.0]
[1723084056801,6.4662,154.65,154.46,15.0404]
[1723084057003,6.0376,154.66,154.47,40.15659801]
[1723084057302,6.0376,154.66,154.49,15.0404]
[1723084057510,6.0376,154.66,154.5,20.43651323]
[1723084057893,11.34798654,154.68,154.51,70.9878]
[1723084058199,11.34798654,154.68,154.52,20.0]
[1723084058400,11.34798654,154.68,154.54,35.277]
[1723084058605,11.34798654,154.68,154.55,85.84325876]
[1723084058813,11.34798654,154.77,154.58,15.897]
[1723084059097,6.73902615,154.75,154.59,21.46304625]
[1723084059303,6.73902615,154.75,154.6,0.17]
[1723084059605,6.73902615,154.75,154.61,68.82287898]
[1723084059814,6.73902615,154.75,154.62,61.819]
[1723084060104,6.73902615,154.75,154.63,1.29270102]
[1723084060909,6.4637,154.71,154.62,22.099]
[1723084061284,20.0,154.71,154.58,6.5264]
[1723084061486,6.4653,154.68,154.56,15.5726]
[1723084061815,45.17,154.67,154.56,15.5726]
[1723084061993,0.17,154.66,154.56,15.5726]
[1723084063894,0.17,154.67,154.56,15.5726]
[1723084064403,0.17,154.67,154.57,20.0]
[1723084065405,0.17,154.67,154.56,15.5726]
[1723084065583,0.17,154.67,154.57,1.17924194]
[1723084065787,0.17,154.66,154.56,15.5726]
[1723084066112,6.4646,154.69,154.56,15.5726]
[1723084066484,20.0,154.74,154.56,15.5726]
[1723084066687,6.4645,154.7,154.57,20.0]
[1723084066882,41.9184,154.75,154.57,20.0]
[1723084066883,6.4634,154.72,154.57,20.0]
[1723084067201,22.5384,154.75,154.57,20.0]
[1723084067202,6.4639,154.71,154.57,20.0]
[1723084067399,0.17,154.7,154.57,20.0]
[1723084067588,6.4615,154.77,154.57,20.0]
[1723084067788,6.4616,154.76,154.59,21.7909]
[1723084067987,6.4616,154.76,154.6,21.62743413]
[1723084068183,12.92885289,154.79,154.6,21.62743413]
[1723084068184,6.4613,154.77,154.6,21.62743413]
[1723084068387,6.72475289,154.79,154.62,15.2259]
[1723084068609,0.8368321,154.8,154.64,6.565]
[1723084068903,0.8368321,154.8,154.65,21.29246879]
[1723084069106,0.8368321,154.8,154.65,20.0]
[1723084069685,0.8368321,154.8,154.64,6.565]
[1723084070111,6.4621,154.75,154.64,6.565]
[1723084070412,6.6325,154.74,154.64,6.565]
[1723084070608,0.17,154.74,154.64,6.565]
[1723084071008,0.17,154.7,154.64,6.565]
[1723084071312,0.17,154.74,154.64,6.565]
[1723084071515,0.17,154.72,154.64,6.565]
[1723084072508,51.6329,154.73,154.64,6.565]
[1723084072717,6.6334,154.72,154.64,6.565]
[1723084073035,45.17,154.71,154.64,6.565]
[1723084073205,45.17,154.71,154.62,15.2259]
[1723084073206,0.17,154.7,154.62,15.2259]
[1723084073392,45.17,154.7,154.62,15.2259]
[1723084073592,0.17,154.69,154.62,15.2259]
[1723084073813,6.4658,154.66,154.58,6.5253]
[1723084074110,0.17,154.65,154.58,6.5253]
[1723084074312,0.17,154.61,154.58,6.5253]
[1723084074528,0.17,154.65,154.58,6.5253]
[1723084074709,0.17,154.64,154.58,6.5253]
[1723084075916,6.4615,154.77,154.58,7.76676755]
[1723084076113,6.0069,154.78,154.6,16.1408]
[1723084076314,6.4612,154.77,154.61,20.0]
[1723084076523,6.4616,154.76,154.61,20.0]
[1723084076696,6.4621,154.75,154.61,20.0]
[1723084077420,6.0069,154.78,154.61,20.0]
[1723084077599,12.468,154.78,154.61,20.0]
[1723084077918,6.0069,154.78,154.61,20.0]
[1723084078120,26.0069,154.78,154.61,20.0]
[1723084078715,6.0069,154.78,154.61,20.0]
[1723084078922,0.17,154.77,154.61,20.0]
[1723084079418,0.34,154.77,154.61,20.0]
[1723084079808,6.0069,154.78,154.63,15.1224]
[1723084080013,9.2211414,154.79,154.64,20.0]
[1723084080215,9.2211414,154.79,154.63,15.1224]
[1723084080404,15.6818414,154.79,154.63,15.1224]
[1723084080732,9.2211414,154.79,154.63,15.1224]
[1723084081019,20.0,154.76,154.63,15.1224]
[1723084081220,6.4624,154.74,154.63,15.1224]
[1723084081405,45.34,154.73,154.63,15.1224]
[1723084083521,6.4633,154.72,154.63,15.1224]
[1723084083721,45.34,154.71,154.63,15.1224]
[1723084087901,45.17,154.71,154.63,15.1224]
[1723084088106,27.2483321,154.8,154.63,15.1224]
[1723084088308,6.73507269,154.79,154.63,15.1224]
[1723084088513,9.21049918,154.79,154.64,20.0]
[1723084088818,20.12951329,154.79,154.64,20.0]
[1723084089210,40.12951329,154.79,154.64,20.0]
[1723084089412,6.4609,154.78,154.64,20.0]
[1723084089634,26.58991329,154.79,154.64,20.0]
[1723084090312,45.17,154.78,154.64,20.0]
[1723084090509,0.17,154.77,154.64,20.0]
[1723084091117,20.12951329,154.79,154.64,20.0]
[1723084091916,11.34798654,154.78,154.64,20.0]
[1723084092239,2.47542649,154.79,154.64,20.0]
[1723084092408,6.463,154.73,154.63,15.1224]